bitfinex-derivatives/quotes_BTCF0:USTF0_20241210
["timestamp","ask_amount","ask_price","bid_price","bid_amount"]
[1733800865661,0.005,96238.0,96229.0,0.00013009]
[1733800865864,0.051921,96237.0,96229.0,0.00013009]
[1733800866362,0.005,96246.0,96229.0,0.00013009]
[1733800866860,0.005,96234.0,96229.0,0.00013009]
[1733800867064,0.051924,96231.0,96229.0,0.00013009]
[1733800868164,0.005,96234.0,96229.0,0.00013009]
[1733800868363,46.32447975,96250.0,96229.0,0.00013009]
[1733800868364,0.001,96237.0,96229.0,0.00013009]
[1733800868558,0.052921,96237.0,96229.0,0.00013009]
[1733800868757,0.005,96235.0,96229.0,0.00013009]
[1733800869166,0.051925,96230.0,96229.0,0.00013009]
[1733800869462,0.051933,96214.0,96200.0,0.1]
[1733800869664,0.051935,96210.0,96200.0,0.1]
[1733800869972,0.23906949,96227.0,96200.0,0.1]
[1733800869973,4e-05,96201.0,96200.0,0.1]
[1733800870363,4e-05,96201.0,96200.0,1.60010401]
[1733800870556,4e-05,96201.0,96200.0,0.10010401]
[1733800871361,0.00015182,96201.0,96200.0,0.10010401]
[1733800872063,0.005,96185.0,96167.0,0.2791]
[1733800872367,4e-05,96168.0,96167.0,0.28715896]
[1733800872565,4e-05,96168.0,96143.0,0.18452266]
[1733800872771,4e-05,96168.0,96156.0,0.051964]
[1733800872972,0.051952,96180.0,96156.0,0.051964]
[1733800873166,0.005,96185.0,96172.0,8.529e-05]
[1733800873758,0.051951,96182.0,96172.0,8.529e-05]
[1733800874665,0.005,96173.0,96172.0,8.529e-05]
[1733800876168,0.004,96173.0,96172.0,8.529e-05]
[1733800876868,0.005,96200.0,96172.0,0.05204129]
[1733800877060,0.24406949,96200.0,96172.0,0.05204129]
[1733800877374,0.24406949,96200.0,96199.0,8e-05]
[1733800877570,0.005,96200.0,96199.0,8e-05]
[1733800877763,0.005,96175.0,96172.0,8.529e-05]
[1733800877969,0.005,96173.0,96172.0,8.529e-05]
[1733800878864,0.051955,96174.0,96172.0,8.529e-05]
[1733800879370,0.051955,96174.0,96173.0,8e-05]
[1733800879775,0.005,96165.0,96150.0,0.051968]
[1733800879975,0.005,96165.0,96143.0,0.00814991]
[1733800880167,4e-05,96151.0,96144.0,1.5]
[1733800880374,4e-05,96151.0,96139.0,0.051974]
[1733800880675,4e-05,96140.0,96133.0,0.00056]
[1733800880873,4e-05,96140.0,96134.0,7.628e-05]
[1733800881073,0.005,96145.0,96134.0,7.628e-05]
[1733800881375,4e-05,96151.0,96144.0,8e-05]
[1733800881876,4e-05,96151.0,96134.0,7.628e-05]
[1733800881877,4e-05,96151.0,96150.0,8e-05]
[1733800883171,4e-05,96151.0,96150.0,0.052048]
[1733800883675,0.051951,96181.0,96150.0,0.052048]
[1733800883676,0.23906949,96210.0,96179.0,0.051952]
[1733800883877,0.051967,96151.0,96150.0,0.00828323]
[1733800884080,0.051967,96151.0,96134.0,0.00307628]
[1733800884081,0.051976,96135.0,96134.0,0.00307628]
[1733800884375,0.051976,96135.0,96134.0,7.628e-05]
[1733800885169,0.06001108,96135.0,96134.0,7.628e-05]
[1733800885575,0.051988,96113.0,96100.0,0.1]
[1733800885980,4e-05,96101.0,96100.0,0.1]
[1733800886281,4e-05,96101.0,96100.0,0.16027732]
[1733800886579,4e-05,96101.0,96100.0,0.10840378]
[1733800886780,4e-05,96101.0,96100.0,0.10012146]
[1733800887980,0.00015758,96101.0,96100.0,0.10412146]
[1733800888577,0.00015758,96101.0,96100.0,0.10012146]
[1733800888883,0.00822903,96101.0,96072.0,0.05201]
[1733800889077,0.00822903,96101.0,96073.0,1.5]
[1733800889078,0.23906949,96100.0,96073.0,1.5]
[1733800889682,0.23906949,96100.0,96083.0,7.525e-05]
[1733800889874,0.005,96098.0,96083.0,7.525e-05]
[1733800890677,0.005,96087.0,96083.0,7.525e-05]
[1733800891079,0.00111758,96101.0,96083.0,7.525e-05]
[1733800891080,0.005,96097.0,96083.0,7.525e-05]
[1733800891386,0.005,96097.0,96096.0,8e-05]
[1733800895184,0.305,96097.0,96096.0,8e-05]
[1733800895384,0.005,96097.0,96096.0,8e-05]
[1733800895586,0.305,96097.0,96096.0,8e-05]
[1733800895986,0.305,96097.0,96052.0,0.2874]
[1733800895987,0.057003,96084.0,96052.0,0.2874]
[1733800896294,0.052017,96059.0,96052.0,0.2874]
[1733800897080,0.005,96065.0,96055.0,0.00012619]
[1733800897287,0.052019,96057.0,96055.0,0.00012619]
[1733800897790,0.00833442,96065.0,96055.0,0.00012619]
[1733800897995,0.005,96073.0,96064.0,8e-05]
[1733800898191,0.005,96073.0,96065.0,1.5]
[1733800898491,0.005,96083.0,96072.0,8e-05]
[1733800898993,0.005,96083.0,96082.0,8e-05]
[1733800899392,0.00816366,96091.0,96082.0,8e-05]
[1733800899586,0.00011758,96101.0,96092.0,0.051999]
[1733800899785,0.051984,96120.0,96090.0,1.74054949]
[1733800899984,0.051984,96120.0,96100.0,0.23906949]
[1733800900194,0.051978,96132.0,96119.0,8e-05]
[1733800900691,0.051978,96132.0,96131.0,8e-05]
[1733800900893,0.05210211,96132.0,96131.0,8e-05]
[1733800901085,0.051988,96113.0,96091.0,0.2954]
[1733800901284,0.30814492,96132.0,96100.0,0.23906949]
[1733800901494,0.05199,96110.0,96092.0,0.051999]
[1733800901888,4e-05,96093.0,96082.0,0.06014385]
[1733800902085,4e-05,96093.0,96082.0,0.052004]
[1733800902392,0.051994,96102.0,96080.0,0.23906949]
[1733800902393,4e-05,96083.0,96080.0,0.23906949]
[1733800902786,4e-05,96081.0,96072.0,8e-05]
[1733800903090,4e-05,96073.0,96072.0,8e-05]
[1733800905483,0.00104,96073.0,96072.0,8e-05]
[1733800906290,0.00825932,96088.0,96073.0,0.052009]
[1733800906593,0.23906949,96110.0,96073.0,0.052009]
[1733800906982,0.23906949,96110.0,96072.0,8e-05]
[1733800907191,0.051996,96098.0,96077.0,0.052007]
[1733800907788,0.051999,96093.0,96078.0,1.5]
[1733800908193,0.57865316,96120.0,96072.0,8e-05]
[1733800908194,0.052003,96085.0,96072.0,8e-05]
[1733800908490,0.24006949,96110.0,96072.0,8e-05]
[1733800908892,0.24006949,96110.0,96073.0,1.5]
[1733800909100,0.051996,96099.0,96073.0,1.5]
[1733800909399,0.23906949,96110.0,96074.0,0.2942]
[1733800909400,0.003,96093.0,96074.0,0.2942]
[1733800909592,0.052,96091.0,96074.0,0.2942]
[1733800909891,0.003,96093.0,96074.0,0.2942]
[1733800909892,0.052001,96088.0,96074.0,0.2942]
[1733800910487,0.052004,96084.0,96074.0,0.2942]
[1733800910688,0.052004,96083.0,96074.0,0.2942]
[1733800910888,0.052006,96079.0,96074.0,0.2942]
[1733800911292,0.052008,96076.0,96074.0,0.2942]
[1733800911596,0.052008,96076.0,96072.0,8e-05]
[1733800911597,0.052009,96074.0,96072.0,8e-05]
[1733800911991,4e-05,96073.0,96072.0,8e-05]
[1733800914788,0.00204,96073.0,96072.0,8e-05]
[1733800914992,0.08995809,96097.0,96072.0,8e-05]
[1733800915294,0.08995809,96104.0,96101.0,0.051994]
[1733800915497,0.08995809,96111.0,96105.0,0.051992]
[1733800915689,0.00860062,96121.0,96105.0,0.051992]
[1733800915890,0.11994412,96130.0,96110.0,8e-05]
[1733800915891,0.08995809,96125.0,96110.0,8e-05]
[1733800916100,0.051984,96121.0,96120.0,8e-05]
[1733800916404,0.051984,96121.0,96091.0,0.2918]
[1733800916405,0.00013522,96124.0,96104.0,0.051992]
[1733800916705,0.00013522,96124.0,96091.0,0.5918]
[1733800916706,0.00013522,96124.0,96108.0,0.05199]
[1733800916999,0.00013522,96124.0,96110.0,0.23906949]
[1733800917302,0.00013522,96124.0,96109.0,0.00012384]
[1733800917303,0.051989,96111.0,96109.0,0.00012384]
[1733800917602,0.051985,96118.0,96109.0,0.00012384]
[1733800917801,0.23906949,96120.0,96109.0,0.00012384]
[1733800918099,0.051989,96111.0,96109.0,0.00012384]
[1733800918590,0.14546316,96111.0,96109.0,0.00012384]
[1733800918795,0.054989,96111.0,96109.0,0.00012384]
[1733800919307,0.06383342,96111.0,96109.0,0.00012384]
[1733800920191,0.09047416,96118.0,96109.0,0.00012384]
[1733800920400,0.00013522,96124.0,96109.0,0.00012384]
[1733800920593,0.006,96111.0,96110.0,0.051989]
[1733800920796,0.00013522,96124.0,96109.0,0.00112384]
[1733800921206,4e-05,96110.0,96109.0,0.00112384]
[1733800921394,4e-05,96110.0,96109.0,0.00012384]
[1733800921598,0.052029,96110.0,96109.0,0.00012384]
[1733800921800,0.14250316,96110.0,96072.0,8e-05]
[1733800921996,0.052009,96073.0,96072.0,8e-05]
[1733800922308,0.052049,96073.0,96072.0,8e-05]
[1733800922899,0.05213811,96073.0,96072.0,8e-05]
[1733800923805,0.06099634,96073.0,96072.0,8e-05]
[1733800925201,0.00898734,96073.0,96072.0,8e-05]
[1733800925406,0.00012911,96073.0,96072.0,0.05209]
[1733800925603,0.00012911,96073.0,96072.0,8e-05]
[1733800926705,0.09047416,96103.0,96086.0,0.052002]
[1733800926898,0.00864205,96112.0,96080.0,0.23906949]
[1733800927105,0.14993015,96127.0,96080.0,0.23906949]
[1733800927106,0.14245516,96126.0,96081.0,0.04551932]
[1733800927316,0.00882191,96127.0,96112.0,0.051988]
[1733800927606,9.068e-05,96119.0,96113.0,1.5]
[1733800928606,9.068e-05,96119.0,96114.0,0.00012321]
[1733800928809,0.09047416,96158.0,96114.0,0.00012321]
[1733800929005,0.051963,96158.0,96138.0,0.051974]
[1733800929305,0.09047416,96163.0,96150.0,8e-05]
[1733800929516,0.23906949,96160.0,96150.0,8e-05]
[1733800929712,0.00014391,96151.0,96150.0,8e-05]
[1733800930008,0.051969,96148.0,96121.0,0.2849]
[1733800930215,0.30014391,96151.0,96121.0,0.2849]
[1733800930216,0.05198,96129.0,96121.0,0.2849]
[1733800930398,0.23906949,96134.0,96121.0,0.2849]
[1733800930710,0.051968,96150.0,96130.0,0.051979]
[1733800930904,0.051968,96150.0,96124.0,0.23906949]
[1733800930905,0.00214391,96151.0,96133.0,8e-05]
[1733800931100,0.00214391,96151.0,96125.0,0.2916]
[1733800931101,0.051968,96150.0,96149.0,8e-05]
[1733800931304,0.00214391,96151.0,96126.0,0.051981]
[1733800931703,0.00214391,96151.0,96125.0,0.2916]
[1733800931704,0.23906949,96150.0,96125.0,0.2916]
[1733800931903,0.00214391,96151.0,96125.0,0.2916]
[1733800931904,4e-05,96127.0,96125.0,0.2916]
[1733800932107,0.051973,96141.0,96125.0,0.2916]
[1733800932108,4e-05,96126.0,96125.0,0.2916]
[1733800932704,4e-05,96126.0,96125.0,0.5916]
[1733800932906,0.00214391,96151.0,96135.0,0.051976]
[1733800933102,0.09047416,96176.0,96160.0,0.051962]
[1733800933302,0.14241816,96195.0,96161.0,0.051962]
[1733800933499,0.051945,96193.0,96170.0,0.23906949]
[1733800933817,0.051945,96193.0,96137.0,0.5689]
[1733800933818,46.63452166,96200.0,96160.0,0.00884515]
[1733800934005,0.14241616,96197.0,96159.0,0.051963]
[1733800934205,4e-05,96161.0,96160.0,0.29103149]
[1733800934400,0.002,96195.0,96160.0,0.3]
[1733800934611,0.002,96195.0,96171.0,0.051956]
[1733800934803,0.002,96195.0,96194.0,8e-05]
[1733800935007,0.002,96195.0,96179.0,0.051952]
[1733800935202,46.09545217,96200.0,96180.0,0.23906949]
[1733800935405,46.09545217,96200.0,96170.0,0.3]
[1733800935406,4e-05,96180.0,96178.0,0.051952]
[1733800935705,0.0001156,96192.0,96179.0,9.274e-05]
[1733800935909,0.23906949,96190.0,96179.0,9.274e-05]
[1733800936110,0.0001156,96192.0,96179.0,9.274e-05]
[1733800936407,0.051953,96178.0,96159.0,0.002]
[1733800936601,0.051946,96191.0,96160.0,0.23906949]
[1733800936803,0.051946,96191.0,96159.0,0.002]
[1733800936804,0.0001156,96192.0,96170.0,0.23906949]
[1733800937002,0.0001156,96192.0,96180.0,0.23906949]
[1733800937211,0.0001156,96192.0,96188.0,7.317e-05]
[1733800939811,46.09545217,96200.0,96191.0,1.5]
[1733800940009,46.09545217,96200.0,96197.0,0.051942]
[1733800940211,46.09545217,96200.0,96199.0,8e-05]
[1733800941417,46.09545217,96200.0,96188.0,7.317e-05]
[1733800941418,46.39545217,96200.0,96188.0,7.317e-05]
[1733800941622,0.23906949,96160.0,96127.0,0.2935]
[1733800941917,0.23906949,96180.0,96130.0,0.23906949]
[1733800942117,0.23906949,96180.0,96131.0,0.2935]
[1733800942322,4e-05,96189.0,96179.0,8e-05]
[1733800942712,4e-05,96189.0,96188.0,8e-05]
[1733800943918,4e-05,96189.0,96188.0,0.052027]
[1733800944420,4e-05,96189.0,96188.0,8e-05]
[1733800945719,4e-05,96189.0,96188.0,0.00308]
[1733800946416,0.051956,96173.0,96153.0,0.298]
[1733800946619,0.05196,96165.0,96130.0,0.23906949]
[1733800946919,4e-05,96154.0,96134.0,0.298]
[1733800947112,0.05197,96147.0,96134.0,0.298]
[1733800947312,4e-05,96154.0,96141.0,0.00011552]
[1733800947712,4e-05,96154.0,96153.0,8e-05]
[1733800947920,0.000164,96154.0,96153.0,8e-05]
[1733800948115,0.000164,96154.0,96141.0,0.00011552]
[1733800948514,4e-05,96142.0,96141.0,0.00011552]
[1733800950614,0.00204,96142.0,96141.0,0.00011552]
[1733800951013,0.00204,96142.0,96141.0,0.05208852]
[1733800951315,0.00204,96142.0,96141.0,1.50011552]
[1733800951614,0.00304,96142.0,96141.0,1.50011552]
[1733800951814,0.000124,96154.0,96149.0,0.051968]
[1733800952023,0.000124,96154.0,96144.0,0.23906949]
[1733800952211,0.000124,96154.0,96153.0,8e-05]
[1733800952912,46.33452166,96200.0,96160.0,0.051962]
[1733800952913,0.051948,96187.0,96160.0,0.051962]
[1733800953119,0.051948,96187.0,96160.0,0.29103149]
[1733800953418,0.051948,96187.0,96186.0,8e-05]
[1733800953817,0.05205232,96187.0,96186.0,8e-05]
[1733800954924,0.05205232,96187.0,96160.0,0.001]
[1733800954925,0.00010432,96187.0,96160.0,0.001]
[1733800955110,0.05196,96165.0,96160.0,0.001]
[1733800955312,0.00872772,96187.0,96150.0,0.23906949]
[1733800955624,0.00010432,96187.0,96186.0,8e-05]
[1733800957924,0.00010432,96187.0,96186.0,1.50008]
[1733800959122,0.00010432,96187.0,96186.0,1.552028]
[1733800959520,0.00866559,96196.0,96186.0,1.552028]
[1733800959521,0.00866559,96196.0,96186.0,1.50008]
[1733800959722,46.09545217,96200.0,96194.0,0.051944]
[1733800960027,46.09545217,96200.0,96199.0,4e-05]
[1733800960418,46.10404692,96200.0,96199.0,4e-05]
[1733800960618,46.10417315,96200.0,96199.0,4e-05]
[1733800961925,0.051951,96182.0,96160.0,0.20753725]
[1733800962324,0.004,96164.0,96141.0,0.00011552]
[1733800962528,0.051972,96142.0,96141.0,5.2e-07]
[1733800962719,0.052012,96142.0,96141.0,5.2e-07]
[1733800962919,4e-05,96142.0,96113.0,0.18452266]
[1733800963125,0.051989,96111.0,96106.0,0.0014]
[1733800963423,0.352012,96142.0,96080.0,0.24029581]
[1733800963424,4e-05,96107.0,96080.0,0.24029581]
[1733800963616,4e-05,96107.0,96075.0,0.18452266]
[1733800963617,4e-05,96107.0,96075.0,0.351208]
[1733800963814,4e-05,96081.0,96075.0,0.351208]
[1733800964014,7.941e-05,96089.0,96075.0,0.351208]
[1733800964015,4e-05,96076.0,96075.0,0.351208]
[1733800964221,4e-05,96076.0,96075.0,0.35132518]
[1733800964729,4e-05,96076.0,96075.0,0.30813683]
[1733800965323,4e-05,96076.0,96075.0,0.31013683]
[1733800965634,4e-05,96076.0,96075.0,0.30131718]
[1733800966514,4e-05,96076.0,96075.0,0.00211718]
[1733800967723,4e-05,96076.0,96075.0,1.50211718]
[1733800968118,4e-05,96076.0,96075.0,1.50011718]
[1733800968328,4e-05,96076.0,96075.0,0.00211718]
[1733800970319,4e-05,96076.0,96075.0,1.50211718]
[1733800971723,4e-05,96076.0,96075.0,1.50011718]
[1733800971924,4e-05,96076.0,96075.0,1.50111718]
[1733800972818,4e-05,96076.0,96075.0,1.50011718]
[1733800973031,4e-05,96076.0,96075.0,1.50111718]
[1733800973828,4e-05,96076.0,96075.0,1.55312518]
[1733800974030,4e-05,96076.0,96075.0,1.50111718]
[1733800974625,4e-05,96076.0,96075.0,0.00111718]
[1733800975135,4e-05,96076.0,96075.0,0.00011718]
[1733800975723,0.72164,96076.0,96075.0,0.00011718]
[1733800977136,0.72164,96076.0,96075.0,1.8e-07]
[1733800977341,0.05201,96073.0,96037.0,0.3046]
[1733800977627,0.36084,96038.0,96037.0,1.8046]
[1733800978334,4e-05,96038.0,96037.0,1.81371007]
[1733800978533,4e-05,96038.0,96037.0,0.31371007]
[1733800978737,4e-05,96038.0,96037.0,0.32171007]
[1733800978936,0.3608,96056.0,96054.0,0.052019]
[1733800979338,0.3608,96056.0,96055.0,8e-05]
[1733800980136,0.3608,96056.0,96055.0,1.50008]
[1733800980334,0.3608,96066.0,96055.0,1.50008]
[1733800980635,0.3608,96066.0,96056.0,0.052019]
[1733800980938,0.412813,96066.0,96065.0,8e-05]
[1733800982237,0.412813,96066.0,96065.0,3.1e-07]
[1733800983131,0.3608,96066.0,96037.0,0.00013474]
[1733800983337,0.3608,96039.0,96037.0,0.00013474]
[1733800983542,4e-05,96038.0,96037.0,0.00013474]
[1733800983926,0.052068,96038.0,96037.0,0.00013474]
[1733800984142,0.052068,96038.0,96007.0,0.36980265]
[1733800984336,0.052041,96015.0,96007.0,0.3608]
[1733800984534,0.412842,96013.0,96003.0,0.2786]
[1733800984735,0.3608,96013.0,96003.0,0.2786]
[1733800984933,0.3608,96037.0,96003.0,0.2786]
[1733800985135,0.3608,96054.0,96021.0,0.00010563]
[1733800985437,0.3608,96054.0,96040.0,0.1873083]
[1733800985625,0.3608,96054.0,96046.0,0.052024]
[1733800985826,0.3608,96054.0,96037.0,0.3638]
[1733800985827,0.3608,96054.0,96045.0,0.3608]
[1733800986036,0.3608,96054.0,96038.0,0.3046]
[1733800986231,0.00012313,96043.0,96038.0,0.3046]
[1733800986428,4e-05,96039.0,96038.0,0.3046]
[1733800987335,4e-05,96039.0,96036.0,8e-05]
[1733800987533,0.052029,96037.0,96036.0,8e-05]
[1733800987736,0.052037,96023.0,96007.0,0.3608]
[1733800988038,0.36084,96022.0,96007.0,0.3608]
[1733800988430,0.36084,96022.0,96021.0,0.00010563]
[1733800989039,0.3048,96042.0,96021.0,0.00010563]
[1733800989040,0.3608,96046.0,96029.0,0.052033]
[1733800989334,0.3608,96046.0,96042.0,8e-05]
[1733800989534,0.00917288,96075.0,96054.0,0.052019]
[1733800989737,0.3608,96073.0,96059.0,0.3608]
[1733800989939,0.052012,96070.0,96059.0,0.3608]
[1733800990536,0.3608,96060.0,96047.0,0.3608]
[1733800990839,0.36084,96048.0,96042.0,0.00148]
[1733800991032,0.36084,96048.0,96016.0,0.3608]
[1733800991033,0.3608,96047.0,96016.0,0.3608]
[1733800991343,0.3608,96047.0,96008.0,0.3608]
[1733800991344,4e-05,96022.0,96017.0,1.5]
[1733800991528,4e-05,96022.0,96017.0,0.0014]
[1733800991732,4e-05,96022.0,96008.0,0.3608]
[1733800991733,4e-05,96022.0,96021.0,0.00010563]
[1733800992136,0.05218512,96022.0,96021.0,0.00010563]
[1733800992335,0.052046,96006.0,96000.0,0.1]
[1733800992638,4e-05,96001.0,96000.0,0.1]
[1733800993642,4e-05,96001.0,96000.0,0.107]
[1733800994543,4e-05,96001.0,95990.0,0.0376383]
[1733800994544,0.30004,96001.0,95990.0,0.0376383]
[1733800994732,0.30004,96001.0,95990.0,0.03364485]
[1733800994733,0.412854,95991.0,95990.0,0.03364485]
[1733800995043,0.412894,95991.0,95990.0,0.03364485]
[1733800995240,0.66084,95991.0,95952.0,0.18452266]
[1733800995445,0.3608,95960.0,95945.0,0.54532266]
[1733800995632,4e-05,95954.0,95945.0,0.3608]
[1733800995838,4e-05,95946.0,95942.0,7.93e-05]
[1733800996153,4e-05,95943.0,95942.0,7.93e-05]
[1733800996441,0.052098,95910.0,95907.0,0.18452266]
[1733800996644,0.052098,95910.0,95888.0,0.67248872]
[1733800996645,0.3608,95908.0,95888.0,0.54532266]
[1733800996946,0.36084,95908.0,95904.0,0.052101]
[1733800997245,0.36084,95908.0,95893.0,0.052107]
[1733800997434,0.36084,95908.0,95897.0,0.00010484]
[1733800997636,4e-05,95901.0,95897.0,0.00010484]
[1733800998038,0.3608,95932.0,95900.0,0.452103]
[1733800998244,0.3608,95932.0,95923.0,0.052091]
[1733800998546,0.3608,95945.0,95942.0,0.001]
[1733800998735,0.3608,95944.0,95942.0,0.001]
[1733800999135,8.237e-05,95943.0,95942.0,0.001]
[1733800999338,0.3608,95962.0,95951.0,0.052076]
[1733800999642,0.3608,95977.0,95942.0,0.3]
[1733800999643,0.3608,95977.0,95950.0,0.28923706]
[1733800999845,0.3608,95977.0,95976.0,1.5]
[1733801000033,0.3608,95977.0,95976.0,1.50008]
[1733801000340,0.3608,95977.0,95976.0,1.5522711]
[1733801000737,45.99545217,96000.0,95976.0,1.8002091]
[1733801000935,45.99545217,96000.0,95999.0,0.41285]
[1733801001140,44.63413514,96000.0,95999.0,0.41293]
[1733801001346,44.12739214,96000.0,95999.0,0.71293]
[1733801001538,43.59719114,96000.0,95999.0,2.21293]
[1733801001736,41.91578347,96000.0,95999.0,2.22857]
[1733801001937,41.91578347,96000.0,95999.0,2.21423583]
[1733801002141,41.91578347,96000.0,95999.0,1.91423583]
[1733801002340,41.23799747,96000.0,95999.0,2.22223583]
[1733801002546,40.76753147,96000.0,95999.0,2.22223583]
[1733801002733,40.14246988,96000.0,95999.0,2.2314307]
[1733801002933,38.05189872,96000.0,95999.0,2.2314307]
[1733801003146,37.52570472,96000.0,95999.0,2.2294307]
[1733801003353,36.66014315,96000.0,95999.0,2.2294307]
[1733801003647,28.92549044,96000.0,95999.0,2.99326339]
[1733801003835,27.22126234,96000.0,95999.0,3.21002275]
[1733801004038,23.78385923,96000.0,95999.0,3.21402275]
[1733801004235,21.69049823,96000.0,95999.0,2.91402275]
[1733801004541,20.87452551,96000.0,95999.0,3.22402275]
[1733801004735,19.4247994,96000.0,95999.0,3.22702275]
[1733801004937,17.65555529,96000.0,95999.0,3.22702275]
[1733801005246,16.57966529,96000.0,95999.0,3.22702275]
[1733801005433,16.05884618,96000.0,95999.0,3.22702275]
[1733801005636,15.50377181,96000.0,95999.0,3.22702275]
[1733801005850,15.50377181,96000.0,95999.0,2.92715408]
[1733801005851,14.9829527,96000.0,95999.0,2.92715408]
[1733801006039,14.45701752,96000.0,95999.0,2.77102361]
[1733801006240,14.45701752,96000.0,95999.0,2.48674095]
[1733801006537,14.45701752,96000.0,95999.0,1.95505134]
[1733801006750,14.45701752,96000.0,95999.0,1.51959076]
[1733801006937,14.45701752,96000.0,95999.0,0.01959076]
[1733801007137,14.81781752,96000.0,95999.0,0.01959076]
[1733801007647,14.81781752,96000.0,95999.0,0.01039589]
[1733801008044,0.93756,95999.0,95990.0,0.28923706]
[1733801008240,1.29836,95991.0,95970.0,0.28923706]
[1733801008446,0.7216,95971.0,95955.0,0.00917295]
[1733801008643,0.3608,95957.0,95956.0,1.5]
[1733801008945,0.3518,95971.0,95956.0,1.5]
[1733801009148,0.3518,95971.0,95957.0,0.00010531]
[1733801009352,0.3518,95971.0,95970.0,8e-05]
[1733801009648,0.3608,95989.0,95970.0,0.36088]
[1733801009856,14.45701752,96000.0,95988.0,0.3608]
[1733801010041,14.45701752,96000.0,95999.0,1.5]
[1733801010358,14.45701752,96000.0,95999.0,1.50008]
[1733801010848,15.44662652,96000.0,95999.0,1.50008]
[1733801011049,14.50906652,96000.0,95999.0,1.50008]
[1733801011639,14.45701752,96000.0,95999.0,1.50008]
[1733801013052,14.45701752,96000.0,95999.0,1.5001997]
[1733801013248,14.45801752,96000.0,95999.0,1.5061997]
[1733801013753,14.43699357,96000.0,95999.0,1.5061997]
[1733801013948,14.02724564,96000.0,95999.0,1.87688]
[1733801014152,13.77932064,96000.0,95999.0,1.98654956]
[1733801014347,13.77932064,96000.0,95999.0,1.98652198]
[1733801014545,13.67410417,96000.0,95999.0,2.143699]
[1733801014749,13.59987326,96000.0,95999.0,2.143699]
[1733801014956,13.56939121,96000.0,95999.0,2.32821143]
[1733801015250,13.53638944,96000.0,95999.0,2.137699]
[1733801015452,13.53638944,96000.0,95999.0,2.5024457]
[1733801015756,11.74176486,96000.0,95999.0,2.5024457]
[1733801016050,10.93404692,96000.0,95999.0,2.46646003]
[1733801016353,10.17633955,96000.0,95999.0,2.2024457]
[1733801016549,10.14847955,96000.0,95999.0,2.04519103]
[1733801016749,10.02290955,96000.0,95999.0,2.04319103]
[1733801017250,9.83077955,96000.0,95999.0,2.04319103]
[1733801017450,9.50854019,96000.0,95999.0,2.04319103]
[1733801017757,6.27855967,96000.0,95999.0,2.04319103]
[1733801017958,3.65088615,96000.0,95999.0,2.61839993]
[1733801018147,1.31127225,96000.0,95999.0,2.62239993]
[1733801018453,0.13135817,96000.0,95999.0,3.22392473]
[1733801018649,0.00011218,96042.0,96031.0,0.01]
[1733801018853,0.3608,96063.0,96039.0,0.3608]
[1733801019058,0.3608,96063.0,96053.0,0.28923706]
[1733801019350,0.05201,96073.0,96062.0,1.5]
[1733801019541,0.05201,96073.0,96063.0,0.28923706]
[1733801019744,0.05201,96073.0,96072.0,8e-05]
[1733801019941,0.3608,96075.0,96072.0,8e-05]
[1733801020147,0.3608,96075.0,96073.0,0.01564]
[1733801020148,0.20820001,96074.0,96073.0,0.01564]
[1733801020342,0.20820001,96074.0,96073.0,1.51564]
[1733801020541,0.20820001,96074.0,96073.0,1.5]
[1733801020959,0.3608,96091.0,96073.0,1.5]
[1733801021257,0.052031,96033.0,96030.0,0.28923706]
[1733801021458,0.052034,96028.0,96020.0,0.28923706]
[1733801021651,0.7216,96031.0,96000.0,0.3608]
[1733801021652,0.3608,96021.0,96000.0,0.28923706]
[1733801021847,0.36084,96031.0,95999.0,0.009]
[1733801021848,0.3608,96007.0,95999.0,0.009]
[1733801022055,4e-05,96001.0,95994.0,0.02446815]
[1733801022245,4e-05,96000.0,95999.0,0.4648]
[1733801022649,4e-05,96000.0,95999.0,1.97585489]
[1733801022855,4e-05,96000.0,95999.0,1.9759473]
[1733801023152,4e-05,96001.0,95999.0,1.6151473]
[1733801023354,4e-05,96001.0,95999.0,1.50009241]
[1733801023560,4e-05,96001.0,96000.0,8e-05]
[1733801024161,4e-05,96001.0,96000.0,1.50008]
[1733801026454,4e-05,96001.0,96000.0,1.50508]
[1733801027155,4e-05,96001.0,96000.0,0.005]
[1733801027366,0.052057,95985.0,95970.0,0.28923706]
[1733801027556,0.3608,95971.0,95970.0,0.28923706]
[1733801027754,0.3608,95971.0,95961.0,0.28923706]
[1733801027955,0.3608,95962.0,95961.0,0.28923706]
[1733801028150,0.36084,95962.0,95961.0,1.78923706]
[1733801028356,0.36084,95962.0,95961.0,1.50011458]
[1733801028753,0.35884,95962.0,95961.0,1.50011458]
[1733801028948,0.35884,95962.0,95961.0,0.00011458]
[1733801028949,1.2964,95962.0,95961.0,0.00011458]
[1733801029251,0.052074,95954.0,95945.0,0.0455196]
[1733801029448,0.7146,95946.0,95940.0,0.28923706]
[1733801029653,0.71464,95946.0,95941.0,0.04557252]
[1733801029851,0.7146,95946.0,95945.0,1.28]
[1733801030260,0.7146,95946.0,95945.0,1.28007784]
[1733801031154,1.65216,95946.0,95945.0,7.784e-05]
[1733801031955,0.052081,95942.0,95936.0,0.28914373]
[1733801032156,0.3608,95937.0,95936.0,0.28914373]
[1733801032353,0.3608,95937.0,95936.0,0.79]
[1733801032965,0.3222,95961.0,95936.0,0.79]
[1733801032966,0.3608,95941.0,95936.0,0.79009625]
[1733801033162,0.3608,95941.0,95936.0,1.07923998]
[1733801033463,0.3608,95941.0,95940.0,8e-05]
[1733801033667,0.052088,95928.0,95910.0,0.28914373]
[1733801033853,0.3608,95911.0,95910.0,0.28914373]
[1733801034052,0.36084,95911.0,95901.0,0.30478373]
[1733801034454,0.3608,95931.0,95906.0,0.3608]
[1733801034651,0.3608,95931.0,95930.0,0.68]
[1733801034852,0.3608,95931.0,95930.0,0.68008]
[1733801035054,0.3608,95937.0,95930.0,0.68008]
[1733801035259,0.32947977,95937.0,95930.0,0.68008]
[1733801035452,0.32947977,95937.0,95936.0,8e-05]
[1733801036053,4.26703977,95937.0,95936.0,0.68008]
[1733801036362,0.052096,95914.0,95901.0,0.006]